fUST/lending_fUST_20250907
["ID","MTS","AMOUNT","RATE_DAILY","PERIOD"]
[383952927,1757197846566,-480.0,0.00015685,2]
[383952928,1757197846575,-480.0,0.00015685,2]
[383952929,1757197846586,-480.0,0.00015685,2]
[383952930,1757197846595,-480.0,0.00015685,2]
[383952931,1757197846604,-480.0,0.00015685,2]
[383952932,1757197846614,-480.0,0.00015685,2]
[383952933,1757197846624,-480.0,0.00015685,2]
[383952934,1757197846633,-480.0,0.00015685,2]
[383952935,1757197846642,-480.0,0.00015685,2]
[383952936,1757197846652,-480.0,0.00015685,2]
[383952937,1757197846662,-368.82455847,0.00015685,2]
[383952938,1757197846679,-111.17544153,0.00015685,2]
[383952939,1757197846688,-480.0,0.00015685,2]
[383952940,1757197846698,-429.96555062,0.00015685,2]
[383952941,1757197846709,-50.03444938,0.00015685,2]
[383952943,1757197846719,-480.0,0.00015685,2]
[383952944,1757197846729,-11.77500309,0.00015685,2]
[383952945,1757197846740,-468.22499691,0.00015685,2]
[383952950,1757197846903,-480.0,0.00015685,2]
[383952951,1757197846918,-480.0,0.00015685,2]
[383952952,1757197846930,-480.0,0.00015685,2]
[383952953,1757197846939,-480.0,0.00015685,2]
[383952954,1757197846949,-480.0,0.00015685,2]
[383952955,1757197846959,-495.94,0.00015685,2]
[383952956,1757197846969,-480.0,0.00015685,2]
[383952957,1757197846979,-480.0,0.00015685,2]
[383952958,1757197846988,-161.17483759,0.00015685,2]
[383952965,1757199026188,-212.6239161,0.00013426,2]
[383953011,1757199032146,-425.9852339,0.00013426,2]
[383953013,1757199032155,-14.0147661,0.00013699,2]
[383953015,1757199032167,-279.2160694,0.00013699,2]
[383953020,1757199032200,-345.3783145,0.00013699,2]
[383953022,1757199032209,-300.0,0.00014019,2]
[383953024,1757199032219,-480.0,0.0001402,2]
[383953026,1757199032229,-480.0,0.0001402,2]
[383953028,1757199032238,-480.0,0.0001402,2]
[383953030,1757199032248,-480.0,0.0001402,2]
[383953032,1757199032257,-480.0,0.0001402,2]
[383953034,1757199032265,-480.0,0.0001402,2]
[383953037,1757199032274,-480.0,0.00014294,2]
[383953040,1757199032283,-480.0,0.00014294,2]
[383953042,1757199032292,-480.0,0.00014294,2]
[383953044,1757199032301,-480.0,0.00014294,2]
[383953046,1757199032310,-480.0,0.00014294,2]
[383953048,1757199032321,-480.0,0.00014294,2]
[383953050,1757199032330,-480.0,0.00014568,2]
[383953052,1757199032339,-480.0,0.00014568,2]
[383953054,1757199032348,-480.0,0.00014568,2]
[383953056,1757199032357,-480.0,0.00014568,2]
[383953057,1757199032366,-480.0,0.00014568,2]
[383953058,1757199032376,-417.15472785,0.00014686,2]
[383953060,1757199032385,-480.0,0.00014842,2]
[383953062,1757199032394,-454.8047912,0.00014842,2]
[383953064,1757199032403,-480.0,0.00014842,2]
[383953066,1757199032413,-480.0,0.00014842,2]
[383953068,1757199032422,-480.0,0.00014842,2]
[383953070,1757199032430,-480.0,0.00015116,2]
[383953072,1757199032440,-480.0,0.00015116,2]
[383953074,1757199032449,-203.21852024,0.00015194,2]
[383953076,1757199032458,-160.0,0.00015194,2]
[383953078,1757199032468,-160.0,0.00015201,2]
[383953080,1757199032477,-160.0,0.00015201,2]
[383953081,1757199032486,-846.58554688,0.00015201,2]
[383953083,1757199032495,-217.58669629,0.00015201,2]
[383953085,1757199032504,-232.99021696,0.00015201,2]
[383953087,1757199032514,-530.56961759,0.00015201,2]
[383953089,1757199032524,-474.72559155,0.00015211,2]
[383953092,1757199032534,-2105.41764886,0.0001527,2]
[383953094,1757199032544,-1449.3399621,0.00015298,2]
[383953096,1757199032553,-480.0,0.00015302,2]
[383953098,1757199032562,-480.0,0.00015302,2]
[383953100,1757199032572,-480.0,0.00015302,2]
[383953102,1757199032581,-480.0,0.00015302,2]
[383953103,1757199032590,-480.0,0.00015302,2]
[383953105,1757199032599,-374.34833119,0.00015302,2]
[383953107,1757199032609,-480.0,0.00015302,2]
[383953110,1757199032619,-480.0,0.0001531,2]
[383953112,1757199032629,-480.0,0.0001531,2]
[383953114,1757199032638,-480.0,0.0001531,2]
[383953116,1757199032648,-480.0,0.0001531,2]
[383953117,1757199032657,-423.53794407,0.0001531,2]
[383953120,1757199032666,-480.0,0.0001531,2]
[383953122,1757199032676,-480.0,0.0001531,2]
[383953123,1757199032685,-480.0,0.0001531,2]
[383953126,1757199032694,-480.0,0.0001531,2]
[383953127,1757199032706,-480.0,0.0001531,2]
[383953129,1757199032716,-480.0,0.0001531,2]
[383953131,1757199032726,-480.0,0.0001531,2]
[383953133,1757199032736,-480.0,0.0001531,2]
[383953135,1757199032747,-480.0,0.0001531,2]
[383953137,1757199032757,-433.28805066,0.0001531,2]
[383953140,1757199032767,-480.0,0.0001531,2]
[383953142,1757199032777,-480.0,0.0001531,2]
[383953144,1757199032787,-480.0,0.0001531,2]
[383953145,1757199032798,-57.77317895,0.0001531,2]
[383953155,1757199032886,-422.22682105,0.0001531,2]
[383953158,1757199032896,-480.0,0.0001531,2]
[383953160,1757199032906,-480.0,0.00015311,2]
[383953161,1757199032916,-480.0,0.00015311,2]
[383953163,1757199032926,-480.0,0.00015311,2]
[383953166,1757199032935,-480.0,0.00015311,2]
[383953168,1757199032944,-480.0,0.00015311,2]
[383953170,1757199032953,-480.0,0.00015311,2]
[383953171,1757199032963,-480.0,0.00015311,2]
[383953173,1757199032972,-480.0,0.00015311,2]
[383953176,1757199032982,-480.0,0.00015311,2]
[383953177,1757199032991,-480.0,0.00015311,2]
[383953179,1757199033001,-480.0,0.00015311,2]
[383953181,1757199033010,-480.0,0.00015311,2]
[383953184,1757199033020,-480.0,0.00015311,2]
[383953185,1757199033029,-480.0,0.00015311,2]
[383953187,1757199033038,-480.0,0.00015311,2]
[383953190,1757199033048,-480.0,0.00015311,2]
[383953192,1757199033058,-198.59,0.00015311,2]
[383953194,1757199033067,-480.0,0.00015311,2]
[383953196,1757199033077,-480.0,0.00015311,2]
[383953198,1757199033086,-480.0,0.00015311,2]
[383953200,1757199033096,-480.0,0.00015311,2]
[383953202,1757199033104,-480.0,0.00015311,2]
[383953204,1757199033114,-480.0,0.00015311,2]
[383953206,1757199033123,-480.0,0.00015311,2]
[383953208,1757199033134,-480.0,0.00015311,2]
[383953210,1757199033143,-480.0,0.00015311,2]
[383953212,1757199033153,-480.0,0.00015311,2]
[383953214,1757199033161,-480.0,0.00015311,2]
[383953216,1757199033171,-480.0,0.00015311,2]
[383953218,1757199033181,-480.0,0.00015311,2]
[383953220,1757199033190,-480.0,0.00015311,2]
[383953222,1757199033199,-155.37205047,0.00015311,2]
[383953224,1757199033208,-616.66,0.00015311,2]
[383953226,1757199033218,-480.0,0.00015311,2]
[383953228,1757199033227,-480.0,0.00015311,2]
[383953230,1757199033236,-480.0,0.00015311,2]
[383953232,1757199033244,-480.0,0.00015311,2]
[383953234,1757199033254,-480.0,0.00015311,2]
[383953235,1757199033263,-308.45854516,0.00015311,2]
[383953237,1757199033272,-480.0,0.00015311,2]
[383953240,1757199033281,-480.0,0.00015311,2]
[383953242,1757199033290,-480.0,0.00015311,2]
[383953244,1757199033300,-480.0,0.00015311,2]
[383953246,1757199033309,-480.0,0.00015311,2]
[383953248,1757199033318,-480.0,0.00015311,2]
[383953250,1757199033327,-480.0,0.00015311,2]
[383953251,1757199033336,-480.0,0.00015311,2]
[383953253,1757199033345,-480.0,0.00015311,2]
[383953256,1757199033354,-480.0,0.00015311,2]
[383953258,1757199033363,-480.0,0.00015311,2]
[383953259,1757199033373,-480.0,0.00015311,2]
[383953261,1757199033382,-480.0,0.00015311,2]
[383953263,1757199033391,-480.0,0.00015311,2]
[383953265,1757199033401,-480.0,0.00015311,2]
[383953267,1757199033410,-480.0,0.00015311,2]
[383953270,1757199033420,-480.0,0.00015311,2]
[383953271,1757199033429,-480.0,0.00015311,2]
[383953273,1757199033438,-480.0,0.00015311,2]
[383953275,1757199033447,-480.0,0.00015311,2]
[383953277,1757199033457,-334.42370012,0.00015311,2]
[383953279,1757199033466,-480.0,0.00015311,2]
[383953282,1757199033479,-480.0,0.00015311,2]
[383953283,1757199033488,-307.04,0.00015311,2]
[383953286,1757199033498,-480.0,0.00015311,2]
[383953288,1757199033507,-480.0,0.00015311,2]
[383953289,1757199033516,-480.0,0.00015311,2]
[383953291,1757199033525,-480.0,0.00015311,2]
[383953293,1757199033537,-151.0,0.00015311,2]
[383953295,1757199033547,-480.0,0.00015312,2]
[383953297,1757199033556,-480.0,0.00015312,2]
[383953298,1757199033565,-480.0,0.00015312,2]
[383953299,1757199033575,-480.0,0.00015312,2]
[383953300,1757199033584,-480.0,0.00015312,2]
[383953301,1757199033593,-230.72775952,0.00015312,2]
[383953303,1757199033604,-480.0,0.00015312,2]
[383953305,1757199033613,-480.0,0.00015312,2]
[383953306,1757199033623,-480.0,0.00015312,2]
[383953307,1757199033632,-480.0,0.00015312,2]
[383953308,1757199033642,-480.0,0.00015312,2]
[383953310,1757199033651,-480.0,0.00015312,2]
[383953312,1757199033661,-480.0,0.00015312,2]
[383953313,1757199033670,-480.0,0.00015312,2]
[383953315,1757199033679,-480.0,0.00015312,2]
[383953316,1757199033688,-480.0,0.00015312,2]
[383953317,1757199033698,-480.0,0.00015312,2]
[383953318,1757199033712,-480.0,0.00015312,2]
[383953319,1757199033723,-480.0,0.00015312,2]
[383953320,1757199033732,-480.0,0.00015312,2]
[383953321,1757199033742,-480.0,0.00015312,2]
[383953322,1757199033752,-480.0,0.00015312,2]
[383953323,1757199033762,-480.0,0.00015312,2]
[383953324,1757199033771,-480.0,0.00015312,2]
[383953325,1757199033782,-480.0,0.00015312,2]
[383953326,1757199033792,-480.0,0.00015312,2]
[383953327,1757199033803,-480.0,0.00015312,2]
[383953328,1757199033813,-480.0,0.00015312,2]
[383953329,1757199033822,-480.0,0.00015312,2]
[383953330,1757199033832,-480.0,0.00015312,2]
[383953331,1757199033842,-480.0,0.00015312,2]
[383953332,1757199033852,-515.77808052,0.00015312,2]
[383953333,1757199033862,-480.0,0.00015312,2]
[383953334,1757199033872,-480.0,0.00015312,2]
[383953335,1757199033882,-480.0,0.00015312,2]
[383953336,1757199034013,-480.0,0.00015312,2]
[383953337,1757199034024,-480.0,0.00015312,2]
[383953338,1757199034034,-30.65383898,0.00015312,2]
[383953339,1757199034066,-449.34616102,0.00015312,2]
[383953340,1757199034075,-480.0,0.00015312,2]
[383953341,1757199034084,-480.0,0.00015312,2]
[383953342,1757199034094,-387.43518976,0.00015312,2]
[383953344,1757199037874,-160.0,0.00015194,2]
[383953345,1757199037884,-264.17963581,0.00015302,2]
[383953346,1757199037894,-539.75794929,0.00015311,2]
[383953347,1757199037903,-55.17481024,0.00015312,2]
[383953348,1757199037913,-480.0,0.00015312,2]
[383953349,1757199037922,-480.0,0.00015312,2]
[383953350,1757199037932,-480.0,0.00015312,2]
[383953351,1757199037942,-480.0,0.00015312,2]
[383953352,1757199037951,-360.58760466,0.00015312,2]
[383953353,1757199037963,-119.41239534,0.00015312,2]
[383953354,1757199037973,-151.0,0.00015312,2]
[383953355,1757199037984,-254.137691,0.00015312,2]
[383953356,1757199037994,-151.0,0.00015312,2]
[383953357,1757199038004,-480.0,0.00015312,2]
[383953358,1757199038013,-151.0,0.00015312,2]
[383953359,1757199038022,-480.0,0.00015312,2]
[383953360,1757199038032,-480.0,0.00015312,2]
[383953361,1757199038041,-480.0,0.00015312,2]
[383953362,1757199038050,-480.0,0.00015312,2]
[383953363,1757199038059,-480.0,0.00015312,2]
[383953364,1757199038068,-215.80757805,0.00015312,2]
[383953365,1757199038077,-480.0,0.00015312,2]
[383953366,1757199038086,-480.0,0.00015312,2]
[383953367,1757199038094,-480.0,0.00015312,2]
[383953368,1757199038103,-397.27792671,0.00015312,2]
[383953369,1757199038112,-480.0,0.00015312,2]
[383953370,1757199038121,-480.0,0.00015312,2]
[383953371,1757199038131,-480.0,0.00015312,2]
[383953372,1757199038140,-528.69,0.00015312,2]
[383953373,1757199038149,-480.38405457,0.00015312,2]
[383953374,1757199038159,-480.0,0.00015312,2]
[383953375,1757199038168,-480.0,0.00015312,2]
[383953376,1757199038177,-480.0,0.00015312,2]
[383953377,1757199038186,-480.0,0.00015312,2]
[383953378,1757199038195,-480.0,0.00015312,2]
[383953379,1757199038205,-480.0,0.00015312,2]
[383953380,1757199038215,-480.0,0.00015312,2]
[383953381,1757199038224,-480.0,0.00015312,2]
[383953382,1757199038233,-480.0,0.00015312,2]
[383953383,1757199038243,-480.0,0.00015312,2]
[383953384,1757199038252,-480.0,0.00015312,2]
[383953385,1757199038261,-480.0,0.00015312,2]
[383953386,1757199038271,-480.0,0.00015312,2]
[383953387,1757199038280,-480.0,0.00015312,2]
[383953388,1757199038289,-480.0,0.00015312,2]
[383953389,1757199038299,-500.0,0.00015312,2]
[383953390,1757199038308,-500.0,0.00015324,2]
[383953391,1757199038317,-94.82675433,0.00015324,2]
[383953392,1757199038329,-106.18977617,0.00015324,2]
[383953393,1757199038338,-2183.31810187,0.00015325,2]
[383953394,1757199038347,-420.0,0.00015358,2]
[383953395,1757199038356,-2264.10087164,0.0001538,2]
[383953396,1757199038365,-480.0,0.0001539,2]
[383953397,1757199038374,-480.0,0.00015409,2]
[383953398,1757199038383,-480.0,0.00015409,2]
[383953399,1757199038392,-480.0,0.00015409,2]
[383953400,1757199038402,-480.0,0.00015409,2]
[383953401,1757199038411,-480.0,0.00015409,2]
[383953402,1757199038419,-480.0,0.00015409,2]
[383953403,1757199038428,-480.0,0.00015409,2]
[383953404,1757199038438,-480.0,0.00015409,2]
[383953405,1757199038447,-151.0,0.0001541,2]
[383953406,1757199038456,-480.0,0.00015411,2]
[383953407,1757199038465,-480.0,0.00015411,2]
[383953408,1757199038474,-480.0,0.00015411,2]
[383953409,1757199038483,-480.0,0.00015411,2]
[383953410,1757199038493,-480.0,0.00015411,2]
[383953411,1757199038502,-480.0,0.00015411,2]
[383953412,1757199038511,-480.0,0.00015411,2]
[383953413,1757199038520,-480.0,0.00015411,2]
[383953414,1757199038529,-480.0,0.00015411,2]
[383953415,1757199038538,-151.0,0.00015411,2]
[383953416,1757199038547,-301.999999,0.00015411,2]
[383953417,1757199038556,-480.0,0.00015411,2]
[383953418,1757199038565,-480.0,0.00015411,2]
[383953419,1757199038574,-480.0,0.00015411,2]
[383953420,1757199038583,-415.8470589,0.00015411,2]
[383953421,1757199038592,-480.0,0.00015411,2]
[383953422,1757199038601,-480.0,0.00015412,2]
[383953423,1757199038613,-480.0,0.00015412,2]
[383953424,1757199038624,-480.0,0.00015412,2]
[383953425,1757199038636,-480.0,0.00015412,2]
[383953426,1757199038648,-482.92659992,0.00015412,2]
[383953427,1757199038660,-480.0,0.00015412,2]
[383953428,1757199038672,-480.0,0.00015412,2]
[383953429,1757199038683,-1084.9,0.00015412,2]
[383953430,1757199038693,-1428.73369843,0.00015435,2]
[383953432,1757199038702,-488.63624792,0.00015486,2]
[383953434,1757199038718,-1000.0,0.000155,2]
[383953436,1757199038729,-480.0,0.00015576,2]
[383953438,1757199038739,-480.0,0.00015576,2]
[383953439,1757199038750,-480.0,0.00015576,2]
[383953440,1757199038761,-480.0,0.00015576,2]
[383953441,1757199038773,-480.0,0.00015576,2]
[383953442,1757199038785,-480.0,0.00015576,2]
[383953443,1757199038796,-480.0,0.00015584,2]
[383953444,1757199038807,-519.17730362,0.00015584,2]
[383953445,1757199038819,-315.26906731,0.00015584,2]
[383953446,1757199038831,-247.00210216,0.00015584,2]
[383953447,1757199038843,-480.0,0.00015585,2]
[383953448,1757199038855,-480.0,0.00015585,2]
[383953449,1757199038868,-480.0,0.00015585,2]
[383953450,1757199038880,-480.0,0.00015585,2]
[383953451,1757199038891,-480.0,0.00015585,2]
[383953452,1757199038902,-480.0,0.00015585,2]
[383953453,1757199038915,-480.0,0.00015585,2]
[383953454,1757199038927,-480.0,0.00015585,2]
[383953455,1757199038938,-480.0,0.00015585,2]
[383953456,1757199038948,-480.0,0.00015585,2]
[383953457,1757199038959,-480.0,0.00015585,2]
[383953458,1757199038970,-480.0,0.00015585,2]
[383953459,1757199038990,-480.0,0.00015585,2]
[383953460,1757199039008,-480.0,0.00015585,2]
[383953461,1757199039019,-480.0,0.00015585,2]
[383953462,1757199039031,-480.0,0.00015585,2]
[383953463,1757199039042,-200.0,0.00015585,2]
[383953464,1757199039052,-480.0,0.00015585,2]
[383953465,1757199039062,-520.0,0.00015585,2]
[383953466,1757199039073,-480.0,0.00015585,2]
[383953467,1757199039084,-480.0,0.00015585,2]
[383953468,1757199039095,-616.66,0.00015585,2]
[383953469,1757199039105,-480.0,0.00015585,2]
[383953470,1757199039117,-480.0,0.00015585,2]
[383953471,1757199039129,-238.18,0.00015585,2]
[383953472,1757199039140,-480.0,0.00015585,2]
[383953473,1757199039151,-480.0,0.00015585,2]
[383953474,1757199039163,-480.0,0.00015585,2]
[383953475,1757199039173,-341.46934242,0.00015585,2]
[383953479,1757199040171,-95.56633292,0.00015311,2]
[383953482,1757199043166,-480.0,0.00015301,2]
[383953483,1757199043177,-384.43366708,0.00015311,2]
[383953484,1757199043188,-480.0,0.00015312,2]
[383953485,1757199043199,-480.0,0.00015575,2]
[383953486,1757199043209,-138.53065758,0.00015585,2]
[383953487,1757199043220,-480.0,0.00015585,2]
[383953488,1757199043230,-480.0,0.00015585,2]
[383953489,1757199043241,-480.0,0.00015585,2]
[383953490,1757199043251,-480.0,0.00015585,2]
[383953491,1757199043262,-480.0,0.00015585,2]
[383953492,1757199043273,-480.0,0.00015585,2]
[383953493,1757199043283,-480.0,0.00015585,2]
[383953494,1757199043294,-480.0,0.00015585,2]
[383953495,1757199043305,-479.07737043,0.00015585,2]
[383953496,1757199043316,-480.0,0.00015585,2]
[383953497,1757199043326,-480.0,0.00015585,2]
[383953498,1757199043338,-480.0,0.00015585,2]
[383953499,1757199043348,-480.0,0.00015585,2]
[383953500,1757199043359,-480.0,0.00015585,2]
[383953501,1757199043368,-480.0,0.00015585,2]
[383953502,1757199043377,-480.0,0.00015585,2]
[383953503,1757199043387,-480.0,0.00015585,2]
[383953504,1757199043397,-480.0,0.00015585,2]
[383953505,1757199043407,-480.0,0.00015586,2]
[383953506,1757199043416,-480.0,0.00015586,2]
[383953507,1757199043426,-480.0,0.00015586,2]
[383953508,1757199043437,-480.0,0.00015586,2]
[383953509,1757199043447,-480.0,0.00015586,2]
[383953510,1757199043457,-480.0,0.00015586,2]
[383953511,1757199043467,-480.0,0.00015586,2]
[383953512,1757199043477,-480.0,0.00015586,2]
[383953513,1757199043488,-480.0,0.00015586,2]
[383953514,1757199043498,-480.0,0.00015586,2]
[383953515,1757199043672,-480.0,0.00015586,2]
[383953516,1757199043683,-480.0,0.00015586,2]
[383953517,1757199043692,-480.0,0.00015586,2]
[383953518,1757199043702,-505.54,0.00015586,2]
[383953519,1757199043717,-480.0,0.00015586,2]
[383953520,1757199043726,-480.0,0.00015586,2]
[383953521,1757199043738,-480.0,0.00015586,2]
[383953522,1757199043749,-480.0,0.00015586,2]
[383953523,1757199043759,-480.0,0.00015586,2]
[383953524,1757199043768,-549.55,0.00015586,2]
[383953525,1757199043779,-516.35,0.00015586,2]
[383953526,1757199043788,-480.0,0.00015586,2]
[383953527,1757199043797,-480.0,0.00015586,2]
[383953528,1757199043807,-480.0,0.00015586,2]
[383953529,1757199043816,-480.0,0.00015586,2]
[383953530,1757199043826,-480.0,0.00015586,2]
[383953531,1757199043836,-480.0,0.00015586,2]
[383953532,1757199043845,-500.0,0.00015586,2]
[383953533,1757199043855,-480.0,0.00015664,2]
[383953534,1757199043865,-480.0,0.00015683,2]
[383953535,1757199043875,-480.0,0.00015683,2]
[383953536,1757199043884,-480.0,0.00015683,2]
[383953537,1757199043895,-480.0,0.00015683,2]
[383953538,1757199043905,-480.0,0.00015683,2]
[383953539,1757199043915,-480.0,0.00015683,2]
[383953540,1757199043924,-480.0,0.00015683,2]
[383953541,1757199043934,-10461.83170605,0.00015685,2]
[383953542,1757199043944,-9579.6607782,0.00015685,2]
[383953543,1757199043955,-11019.4846617,0.00015685,2]
[383953544,1757199043964,-2000.0,0.00015685,2]
[383953545,1757199043973,-2000.0,0.00015685,2]
[383953546,1757199043982,-2000.0,0.00015685,2]
[383953547,1757199043992,-2000.0,0.00015685,2]
[383953548,1757199044002,-2000.0,0.00015685,2]
[383953549,1757199044011,-505.525,0.00015685,2]
[383953550,1757199044021,-1705.8723231,0.00015685,2]
[383953551,1757199044030,-480.0,0.00015685,2]
[383953552,1757199044039,-480.0,0.00015685,2]
[383953553,1757199044049,-534.38751074,0.00015685,2]
[383953554,1757199044058,-302.0,0.00015685,2]
[383953555,1757199044068,-157.0,0.00015685,2]
[383953556,1757199044077,-157.0,0.00015685,2]
[383953557,1757199044086,-302.0,0.00015685,2]
[383953558,1757199044096,-302.0,0.00015685,2]
[383953559,1757199044106,-157.0,0.00015685,2]
[383953560,1757199044115,-500.0,0.00015685,2]
[383953561,1757199044124,-480.0,0.00015685,2]
[383953562,1757199044134,-480.0,0.00015685,2]
[383953563,1757199044143,-480.0,0.00015686,2]
[383953564,1757199044153,-300.0,0.0001572,2]
[383953565,1757199044163,-300.0,0.0001572,2]
[383953566,1757199044172,-300.0,0.0001572,2]
[383953567,1757199044184,-300.0,0.0001572,2]
[383953568,1757199044195,-300.0,0.0001572,2]
[383953569,1757199044206,-300.0,0.0001572,2]
[383953570,1757199044215,-300.0,0.0001572,2]
[383953571,1757199044224,-300.0,0.0001572,2]
[383953572,1757199044234,-300.0,0.0001572,2]
[383953573,1757199044243,-500.0,0.00015725,2]
[383953574,1757199044252,-500.0,0.00015725,2]
[383953575,1757199044262,-500.0,0.00015725,2]
[383953576,1757199044271,-500.0,0.00015725,2]
[383953577,1757199044280,-301.91516281,0.00015776,2]
[383953578,1757199044289,-500.0,0.00015786,2]
[383953579,1757199044299,-500.0,0.00015786,2]
[383953580,1757199044309,-480.0,0.00015849,2]
[383953581,1757199044319,-480.0,0.0001585,2]
[383953582,1757199044331,-480.0,0.0001585,2]
[383953583,1757199044340,-480.0,0.0001585,2]
[383953584,1757199044350,-480.0,0.0001585,2]
[383953585,1757199044360,-207.7679744,0.00015852,2]
[383953586,1757199044369,-232.25803472,0.00015859,2]
[383953587,1757199044379,-480.0,0.00015859,2]
[383953588,1757199044389,-203.63943266,0.00015859,2]
[383953589,1757199044399,-480.0,0.00015859,2]
[383953590,1757199044408,-480.0,0.00015859,2]
[383953591,1757199044419,-480.0,0.00015859,2]
[383953592,1757199044429,-480.0,0.00015859,2]
[383953593,1757199044438,-480.0,0.00015859,2]
[383953594,1757199044447,-480.0,0.00015859,2]
[383953595,1757199044457,-480.0,0.00015859,2]
[383953596,1757199044466,-616.66,0.00015859,2]
[383953597,1757199044476,-480.0,0.00015859,2]
[383953598,1757199044485,-480.0,0.00015859,2]
[383953599,1757199044494,-480.0,0.00015859,2]
[383953600,1757199044504,-199.91431909,0.00015859,2]
[383953601,1757199044513,-480.0,0.00015859,2]
[383953602,1757199044522,-480.0,0.00015859,2]
[383953603,1757199044532,-484.7145869,0.00015859,2]
[383953604,1757199044541,-480.0,0.00015859,2]
[383953605,1757199044550,-244.81900853,0.00015859,2]
[383953627,1757199774827,201.0,0.00025,120]
[383953659,1757200232269,-606.678692,0.00013426,2]
[383953660,1757200232279,-606.678692,0.00013699,2]
[383953662,1757200232292,-158.71984996,0.00015035,2]
[383953664,1757200232303,-530.56961759,0.00015092,2]
[383953666,1757200232312,-203.21852024,0.00015096,2]
[383953668,1757200232322,-160.0,0.00015096,2]
[383953670,1757200232331,-417.15472785,0.00015137,2]
[383953672,1757200232340,-846.58554688,0.00015137,2]
[383953674,1757200232350,-160.0,0.00015137,2]
[383953676,1757200232360,-217.58669629,0.00015137,2]
[383953678,1757200232369,-232.99021696,0.00015137,2]
[383953680,1757200232379,-2105.41764886,0.000153,2]
[383953683,1757200232388,-300.0,0.000153,2]
[383953685,1757200232398,-480.0,0.00015301,2]
[383953687,1757200232407,-269.65,0.00015301,2]
[383953689,1757200232416,-480.0,0.00015301,2]
[383953691,1757200232426,-480.0,0.00015301,2]
[383953693,1757200232435,-480.0,0.00015301,2]
[383953695,1757200232445,-577.38413312,0.00015301,2]
[383953697,1757200232454,-480.0,0.00015301,2]
[383953698,1757200232464,-480.0,0.00015301,2]
[383953699,1757200232474,-480.0,0.00015301,2]
[383953700,1757200232483,-480.0,0.00015302,2]
[383953701,1757200232493,-480.0,0.00015308,2]
[383953702,1757200232503,-480.0,0.00015308,2]
[383953703,1757200232512,-480.0,0.00015308,2]
[383953704,1757200232521,-480.0,0.00015308,2]
[383953705,1757200232531,-520.0,0.00015308,2]
[383953706,1757200232540,-480.0,0.00015308,2]
[383953707,1757200232551,-565.27,0.00015308,2]
[383953708,1757200232563,-480.0,0.00015308,2]
[383953709,1757200232573,-480.0,0.00015308,2]
[383953710,1757200232583,-480.0,0.00015308,2]
[383953711,1757200232593,-480.0,0.00015308,2]
[383953712,1757200232603,-480.0,0.00015308,2]
[383953713,1757200232612,-480.0,0.00015308,2]
[383953714,1757200232622,-480.0,0.00015308,2]
[383953715,1757200232631,-480.0,0.00015308,2]
[383953716,1757200232640,-548.22724172,0.00015308,2]